Workbook

Sheet город
A1: Школа | C1: МБОУ "Гимназия №10 ЗМР РТ" | F1: Утвердил: | G1: должность
A2: Типовое примерное меню приготавливаемых блюд | G2: фамилия
A3: Возрастная категория | E3: 7-11 лет | G3: дата | H3: 9 | I3: 1 | J3: 2025
H4: день | I4: месяц | J4: год
A5: Неделя | B5: День недели | C5: Прием пищи | D5: Раздел меню | E5: Блюда | F5: Вес блюда, г | G5: Белки | H5: Жиры | I5: Углеводы | J5: Калорийность | K5: № рецептуры | L5: Цена
A6: 1 | B6: 1 | C6: Завтрак | D6: гарнир | E6: Каша рисовая вязкая молочная с маслом сливочным | F6: 207 | G6: 11 | H6: 12 | I6: 34 | J6: 269 | K6: №510 табл.4 | L6: 30.40
D7: гор.напиток | E7: Чай с сахаром и лимоном | F7: 222 | G7: 0 | H7: 0 | I7: 15 | J7: 59 | K7: №686 сб.2004 г. | L7: 5.90
D8: хлеб | E8: Хлеб/Батон (порциями) | F8: 31 | G8: 2 | H8: 0 | I8: 14 | J8: 96 | K8: №1 сб.2004 г./ ТТК №27 | L8: 2.93
E9: Пирожное песочное, 1 шт | F9: 50 | G9: 2 | H9: 4 | I9: =32-15 -> 17 | J9: =227-82 -> 145 | L9: 30.20
D13: итого | F13: =SUM(F6:F12) -> 510 | G13: =SUM(G6:G12) -> 15 | H13: =SUM(H6:H12) -> 16 | I13: =SUM(I6:I12) -> 80 | J13: =SUM(J6:J12) -> 569 | L13: =SUM(L6:L12) -> 69.43
A14: =A6 -> 1 | B14: =B6 -> 1 | C14: Обед | D14: закуска
D15: 1 блюдо
D16: 2 блюдо
D17: гарнир
D18: напиток
D19: хлеб бел.
D20: хлеб черн.
D23: итого | F23: =SUM(F14:F22) -> 0 | G23: =SUM(G14:G22) -> 0 | H23: =SUM(H14:H22) -> 0 | I23: =SUM(I14:I22) -> 0 | J23: =SUM(J14:J22) -> 0 | L23: =SUM(L14:L22) -> 0
A24: =A6 -> 1 | B24: =B6 -> 1 | C24: Итого за день: | F24: =F13+F23 -> 510 | G24: =G13+G23 -> 15.16 | H24: =H13+H23 -> 16.37 | I24: =I13+I23 -> 80.22 | J24: =J13+J23 -> 569 | L24: =L13+L23 -> 69.43
A25: 1 | B25: 2 | C25: Завтрак | D25: 2 блюдо | E25: Котлеты Любительские с соусом красным основным, 80/10 | F25: 90 | G25: 12 | H25: 11 | I25: 11 | J25: 202 | K25: ТТК №286, ТТК №362 | L25: 50.40
D26: гарнир | E26: Макаронные изделия отварные | F26: 170 | G26: 6 | H26: 5 | I26: 36 | J26: 213 | K26: №516 сб. 2004 г. | L26: 10.40
D27: гор. напиток | E27: Чай полусладкий с черносливом, 200/10/7 | F27: 217 | G27: 0 | H27: 0 | I27: 14 | J27: 55 | K27: ТТК №515С | L27: 6.20
D28: хлеб | E28: Хлеб/Батон (порциями) | F28: 25 | G28: 1 | H28: 0 | I28: 11 | J28: 77 | K28: №1 сб.2004 г./ ТТК №27 | L28: 2.43
D32: итого | F32: =SUM(F25:F31) -> 502 | G32: =SUM(G25:G31) -> 19 | H32: =SUM(H25:H31) -> 16 | I32: =SUM(I25:I31) -> 73 | J32: =SUM(J25:J31) -> 547 | L32: =SUM(L25:L31) -> 69.43
A33: =A25 -> 1 | B33: =B25 -> 2 | C33: Обед | D33: закуска
D34: 1 блюдо
D35: 2 блюдо
D36: гарнир
D37: напиток
D38: хлеб бел.
D39: хлеб черн.
D42: итого | F42: =SUM(F33:F41) -> 0 | G42: =SUM(G33:G41) -> 0 | H42: =SUM(H33:H41) -> 0 | I42: =SUM(I33:I41) -> 0 | J42: =SUM(J33:J41) -> 0 | L42: =SUM(L33:L41) -> 0
A43: =A25 -> 1 | B43: =B25 -> 2 | C43: Итого за день: | F43: =F32+F42 -> 502 | G43: =G32+G42 -> 18.94 | H43: =H32+H42 -> 16.33 | I43: =I32+I42 -> 72.72 | J43: =J32+J42 -> 547 | L43: =L32+L42 -> 69.43
A44: 1 | B44: 3 | C44: Завтрак | D44: 2 блюдо | E44: Картофель тушеный с филе птицы рубленым с доп.гарниром горошек зеленый припущенный | F44: 215 | G44: 14 | H44: 11 | I44: 22 | J44: 247 | K44: ТТК №100С, табл.№24 сб. 1996 г. | L44: =54.6+3.8 -> 58.40
D45: гор.напиток | E45: Чай с сахаром | F45: 215 | G45: 0 | H45: 0 | I45: 15 | J45: 57 | K45: №685 сб. 2004 г. | L45: 3.20
D46: хлеб | E46: Хлеб/Батон (порциями) | F46: 40 | G46: 2 | H46: 0 | I46: 18 | J46: 124 | K46: №1 сб.2004 г./ ТТК №27 | L46: =2.9-0.47 -> 2.43
E47: Печенье формовое, 2 шт | F47: 30 | G47: 2 | H47: 5 | I47: 21 | J47: 141 | L47: =2.7*2 -> 5.40
D51: итого | F51: =SUM(F44:F50) -> 500 | G51: =SUM(G44:G50) -> 19 | H51: =SUM(H44:H50) -> 17 | I51: =SUM(I44:I50) -> 76 | J51: =SUM(J44:J50) -> 569 | L51: =SUM(L44:L50) -> 69.43
A52: =A44 -> 1 | B52: =B44 -> 3 | C52: Обед | D52: закуска
D53: 1 блюдо
D54: 2 блюдо
D55: гарнир
D56: напиток
D57: хлеб бел.
D58: хлеб черн.
D61: итого | F61: =SUM(F52:F60) -> 0 | G61: =SUM(G52:G60) -> 0 | H61: =SUM(H52:H60) -> 0 | I61: =SUM(I52:I60) -> 0 | J61: =SUM(J52:J60) -> 0 | L61: =SUM(L52:L60) -> 0
A62: =A44 -> 1 | B62: =B44 -> 3 | C62: Итого за день: | F62: =F51+F61 -> 500 | G62: =G51+G61 -> 18.88 | H62: =H51+H61 -> 16.99 | I62: =I51+I61 -> 76.2 | J62: =J51+J61 -> 569 | L62: =L51+L61 -> 69.43
A63: 1 | B63: 4 | C63: Завтрак | D63: закуска | E63: Свекла отварная | F63: 60 | G63: 1 | H63: 0 | I63: 5 | J63: 18 | K63: ТТК №601С | L63: 6.00
D64: 2 блюдо | E64: Плов с мясом говядины рубленным | F64: 180 | G64: 13 | H64: 13 | I64: 40 | J64: 326 | K64: ТТК №107С | L64: 51.00
D65: гор.напиток | E65: Чай с сахаром | F65: 215 | G65: 0 | H65: 0 | I65: 15 | J65: 57 | K65: №685 сб. 2004 г. | L65: 3.20
D66: хлеб | E66: Хлеб/Батон (порциями) | F66: 33 | G66: 2 | H66: 0 | I66: 15 | J66: 102 | K66: №1 сб.2004 г./ ТТК №27 | L66: 3.13
E67: Вафли неглазированные 1 шт | F67: 20 | G67: 1 | H67: 5 | I67: 9 | J67: 99 | L67: 6.10
D70: итого | F70: =SUM(F63:F69) -> 508 | G70: =SUM(G63:G69) -> 17 | H70: =SUM(H63:H69) -> 18 | I70: =SUM(I63:I69) -> 83 | J70: =SUM(J63:J69) -> 602 | L70: =SUM(L63:L69) -> 69.43
A71: =A63 -> 1 | B71: =B63 -> 4 | C71: Обед | D71: закуска
D72: 1 блюдо
D73: 2 блюдо
D74: гарнир
D75: напиток
D76: хлеб бел.
D77: хлеб черн.
D80: итого | F80: =SUM(F71:F79) -> 0 | G80: =SUM(G71:G79) -> 0 | H80: =SUM(H71:H79) -> 0 | I80: =SUM(I71:I79) -> 0 | J80: =SUM(J71:J79) -> 0 | L80: =SUM(L71:L79) -> 0
A81: =A63 -> 1 | B81: =B63 -> 4 | C81: Итого за день: | F81: =F70+F80 -> 508 | G81: =G70+G80 -> 16.58 | H81: =H70+H80 -> 17.65 | I81: =I70+I80 -> 83.11 | J81: =J70+J80 -> 602 | L81: =L70+L80 -> 69.43
A82: 1 | B82: 5 | C82: Завтрак | D82: 2 блюдо | E82: Гуляш из филе птицы | F82: 100 | G82: 12 | H82: 16 | I82: 12 | J82: 211 | K82: №437 сб.2004 г. | L82: 50.60
D83: гарнир | E83: Макаронные изделия отварные | F83: 170 | G83: 6 | H83: 5 | I83: 36 | J83: 213 | K83: №516 сб. 2004 г. | L83: 10.40
D84: гор.напиток | E84: Чай с сахаром и лимоном | F84: 222 | G84: 0 | H84: 0 | I84: 15 | J84: 59 | K84: №686 сб.2004 г. | L84: 5.90
D85: хлеб | E85: Хлеб/Батон (порциями) | F85: 27 | G85: 1 | H85: 0 | I85: 12 | J85: 84 | K85: №1 сб.2004 г./ ТТК №27 | L85: 2.53
D89: итого | F89: =SUM(F82:F88) -> 519 | G89: =SUM(G82:G88) -> 19 | H89: =SUM(H82:H88) -> 20 | I89: =SUM(I82:I88) -> 76 | J89: =SUM(J82:J88) -> 567 | L89: =SUM(L82:L88) -> 69.43
A90: =A82 -> 1 | B90: =B82 -> 5 | C90: Обед | D90: закуска
D91: 1 блюдо
D92: 2 блюдо
D93: гарнир
D94: напиток
D95: хлеб бел.
D96: хлеб черн.
D99: итого | F99: =SUM(F90:F98) -> 0 | G99: =SUM(G90:G98) -> 0 | H99: =SUM(H90:H98) -> 0 | I99: =SUM(I90:I98) -> 0 | J99: =SUM(J90:J98) -> 0 | L99: =SUM(L90:L98) -> 0
A100: =A82 -> 1 | B100: =B82 -> 5 | C100: Итого за день: | F100: =F89+F99 -> 519 | G100: =G89+G99 -> 19.14 | H100: =H89+H99 -> 20.33 | I100: =I89+I99 -> 75.62 | J100: =J89+J99 -> 567 | L100: =L89+L99 -> 69.43
A101: 1 | B101: 6 | C101: Завтрак | D101: гарнир | E101: Каша гречневая вязкая с сосиской отварной для детского питания | F101: 230 | G101: 12 | H101: 14 | I101: 28 | J101: 281 | K101: №510 табл.4 сб.2004 г., №413 сб.2004г | L101: =11.8+34.7 -> 46.50
D102: горячий напиток | E102: Кофейный напиток | F102: 200 | G102: 0 | H102: 0 | I102: 22 | J102: 77 | K102: ТТК №503С | L102: 4.60
D103: хлеб | E103: Хлеб/Батон (порциями) | F103: 35 | G103: 2 | H103: 0 | I103: 16 | J103: 108 | K103: №1 сб.2004 г./ТТК №27 | L103: 3.33
E104: Конфета вафельная в шоколадной глазури, 1 шт | F104: 39 | G104: 2 | H104: 6 | I104: 16 | J104: 149 | K104: №1 сб.2004 г./ ТТК №27 | L104: 15.00
D108: итого | F108: =SUM(F101:F107) -> 504 | G108: =SUM(G101:G107) -> 16 | H108: =SUM(H101:H107) -> 20 | I108: =SUM(I101:I107) -> 82 | J108: =SUM(J101:J107) -> 615 | L108: =SUM(L101:L107) -> 69.43
A109: =A101 -> 1 | B109: =B101 -> 6 | C109: Обед | D109: закуска
D110: 1 блюдо
D111: 2 блюдо
D112: гарнир
D113: напиток
D114: хлеб бел.
D115: хлеб черн.
D118: итого | F118: =SUM(F109:F117) -> 0 | G118: =SUM(G109:G117) -> 0 | H118: =SUM(H109:H117) -> 0 | I118: =SUM(I109:I117) -> 0 | J118: =SUM(J109:J117) -> 0 | L118: =SUM(L109:L117) -> 0
A119: =A101 -> 1 | B119: =B101 -> 6 | C119: Итого за день: | F119: =F108+F118 -> 504 | G119: =G108+G118 -> 16.04 | H119: =H108+H118 -> 20.05 | I119: =I108+I118 -> 81.82 | J119: =J108+J118 -> 615 | L119: =L108+L118 -> 69.43
A120: 2 | B120: 1 | C120: Завтрак | D120: гарнир | E120: Каша молочная Дружба с маслом сливочным, яйцо вареное | F120: 233 | G120: 12 | H120: 14 | I120: 36 | J120: 305 | K120: ТТК №84, №337 | L120: =16.7+6.7+19.9 -> 43.30
D121: напиток | E121: Напиток витаминный | F121: 200 | G121: 0 | H121: 0 | I121: 19 | J121: 78 | K121: ТТК №505С | L121: 15.20
D122: хлеб | E122: Хлеб/Батон (порциями) | F122: 36 | G122: 2 | H122: 0 | I122: 16 | J122: 112 | K122: №1 сб.2004 г./ ТТК №27 | L122: 3.43
E123: Пряники 1 шт | F123: 39 | G123: 2 | H123: 2 | I123: 11 | J123: 109 | L123: 7.50
D127: итого | F127: =SUM(F120:F126) -> 508 | G127: =SUM(G120:G126) -> 16 | H127: =SUM(H120:H126) -> 16 | I127: =SUM(I120:I126) -> 83 | J127: =SUM(J120:J126) -> 604 | L127: =SUM(L120:L126) -> 69.43
A128: =A120 -> 2 | B128: =B120 -> 1 | C128: Обед | D128: закуска
D129: 1 блюдо
D130: 2 блюдо
D131: гарнир
D132: напиток
D133: хлеб бел.
D134: хлеб черн.
D137: итого | F137: =SUM(F128:F136) -> 0 | G137: =SUM(G128:G136) -> 0 | H137: =SUM(H128:H136) -> 0 | I137: =SUM(I128:I136) -> 0 | J137: =SUM(J128:J136) -> 0 | L137: =SUM(L128:L136) -> 0
A138: =A120 -> 2 | B138: =B120 -> 1 | C138: Итого за день: | F138: =F127+F137 -> 508 | G138: =G127+G137 -> 16.06 | H138: =H127+H137 -> 16.31 | I138: =I127+I137 -> 83.12 | J138: =J127+J137 -> 604 | L138: =L127+L137 -> 69.43
A139: 2 | B139: 2 | C139: Завтрак | D139: закуска | E139: Свекла отварная | F139: 60 | G139: 1 | H139: 0 | I139: 5 | J139: 18 | K139: ТТК №601С | L139: 6.00
D140: 2 блюдо | E140: Плов из цыплят | F140: 200 | G140: 13 | H140: 15 | I140: 43 | J140: 305 | K140: №492 сб.2004 г. | L140: 53.40
D141: гор. напиток | E141: Чай полусладкий с курагой, 200/10/7 | F141: 217 | G141: 1 | H141: 0 | I141: 14 | J141: 54 | K141: ТТК №514С | L141: 6.20
D142: хлеб | E142: Хлеб/Батон (порциями) | F142: 40 | G142: 2 | H142: 0 | I142: 18 | J142: 124 | K142: №1 сб.2004 г./ ТТК №27 | L142: 3.83
D146: итого | F146: =SUM(F139:F145) -> 517 | G146: =SUM(G139:G145) -> 16 | H146: =SUM(H139:H145) -> 16 | I146: =SUM(I139:I145) -> 79 | J146: =SUM(J139:J145) -> 501 | L146: =SUM(L139:L145) -> 69.43
A147: =A139 -> 2 | B147: =B139 -> 2 | C147: Обед | D147: закуска
D148: 1 блюдо
D149: 2 блюдо
D150: гарнир
D151: напиток
D152: хлеб бел.
D153: хлеб черн.
D156: итого | F156: =SUM(F147:F155) -> 0 | G156: =SUM(G147:G155) -> 0 | H156: =SUM(H147:H155) -> 0 | I156: =SUM(I147:I155) -> 0 | J156: =SUM(J147:J155) -> 0 | L156: =SUM(L147:L155) -> 0
A157: =A139 -> 2 | B157: =B139 -> 2 | C157: Итого за день: | F157: =F146+F156 -> 517 | G157: =G146+G156 -> 16.27 | H157: =H146+H156 -> 16.01 | I157: =I146+I156 -> 79.14 | J157: =J146+J156 -> 501 | L157: =L146+L156 -> 69.43
A158: 2 | B158: 3 | C158: Завтрак | D158: 2 блюдо | E158: Биточки Дружба с соусом красным основным, 80/20 | F158: 100 | G158: 10 | H158: 11 | I158: 10 | J158: 180 | K158: ТТК №355, ТТК №362 | L158: =52.1+0.8 -> 52.90
D159: гарнир | E159: Макаронные изделия отварные | F159: 170 | G159: 6 | H159: 5 | I159: 36 | J159: 213 | K159: №516 сб. 2004 г. | L159: 10.40
D160: гор.напиток | E160: Чай с сахаром | F160: 215 | G160: 0 | H160: 0 | I160: 15 | J160: 57 | K160: №685 сб. 2004 г. | L160: 3.20
D161: булочное | E161: Хлеб/Батон (порциями) | F161: 31 | G161: 2 | H161: 0 | I161: 14 | J161: 96 | K161: №1 сб.2004 г./ ТТК №27 | L161: 2.93
D165: итого | F165: =SUM(F158:F164) -> 516 | G165: =SUM(G158:G164) -> 18 | H165: =SUM(H158:H164) -> 17 | I165: =SUM(I158:I164) -> 75 | J165: =SUM(J158:J164) -> 546 | L165: =SUM(L158:L164) -> 69.43
A166: =A158 -> 2 | B166: =B158 -> 3 | C166: Обед | D166: закуска
D167: 1 блюдо
D168: 2 блюдо
D169: гарнир
D170: напиток
D171: хлеб бел.
D172: хлеб черн.
D175: итого | F175: =SUM(F166:F174) -> 0 | G175: =SUM(G166:G174) -> 0 | H175: =SUM(H166:H174) -> 0 | I175: =SUM(I166:I174) -> 0 | J175: =SUM(J166:J174) -> 0 | L175: =SUM(L166:L174) -> 0
A176: =A158 -> 2 | B176: =B158 -> 3 | C176: Итого за день: | F176: =F165+F175 -> 516 | G176: =G165+G175 -> 17.52 | H176: =H165+H175 -> 16.65 | I176: =I165+I175 -> 75.45 | J176: =J165+J175 -> 546 | L176: =L165+L175 -> 69.43
A177: 2 | B177: 4 | C177: Завтрак | D177: 2 блюдо | E177: Котлеты Любительские с соусом красным основным, 80/20 | F177: 100 | G177: 12 | H177: 11 | I177: 12 | J177: 205 | K177: ТТК №286, ТТК №362 | L177: =50+0.8 -> 50.80
D178: гарнир | E178: Каша гречневая вязкая | F178: 150 | G178: 5 | H178: 6 | I178: 22 | J178: 158 | K178: №510 табл.4 сб.2004 г. | L178: =9.8 -> 9.80
D179: гор.напиток | E179: Чай полусладкий | F179: 210 | G179: 0 | H179: 0 | I179: 10 | J179: 40 | K179: ТТк №512С | L179: 2.50
D180: хлеб | E180: Хлеб/Батон (порциями) | F180: 33 | G180: 2 | H180: 0 | I180: 15 | J180: 102 | K180: №1 сб.2004 г./ТТК №27 | L180: 3.13
E181: Печенье сахарное, 1 шт | F181: 12 | G181: 1 | H181: 2 | I181: 9 | J181: 52 | L181: 3.20
D184: итого | F184: =SUM(F177:F183) -> 505 | G184: =SUM(G177:G183) -> 19 | H184: =SUM(H177:H183) -> 19 | I184: =SUM(I177:I183) -> 68 | J184: =SUM(J177:J183) -> 557 | L184: =SUM(L177:L183) -> 69.43
A185: =A177 -> 2 | B185: =B177 -> 4 | C185: Обед | D185: закуска
D186: 1 блюдо
D187: 2 блюдо
D188: гарнир
D189: напиток
D190: хлеб бел.
D191: хлеб черн.
D194: итого | F194: =SUM(F185:F193) -> 0 | G194: =SUM(G185:G193) -> 0 | H194: =SUM(H185:H193) -> 0 | I194: =SUM(I185:I193) -> 0 | J194: =SUM(J185:J193) -> 0 | L194: =SUM(L185:L193) -> 0
A195: =A177 -> 2 | B195: =B177 -> 4 | C195: Итого за день: | F195: =F184+F194 -> 505 | G195: =G184+G194 -> 19.34 | H195: =H184+H194 -> 18.72 | I195: =I184+I194 -> 67.65 | J195: =J184+J194 -> 557 | L195: =L184+L194 -> 69.43
A196: 2 | B196: 5 | C196: Завтрак | D196: 2 блюдо | E196: Рыба, тушенная в томате с овощами | F196: 100 | G196: 10 | H196: 9 | I196: 14 | J196: 134 | K196: №374 сб.2004 г. | L196: 43.90
D197: гарнир | E197: Пюре картофельное | F197: 150 | G197: 3 | H197: 5 | I197: 19 | J197: 146 | K197: №520 сб.2004 г. | L197: 18.50
D198: гор.напиток | E198: Чай с сахаром | F198: 215 | G198: 0 | H198: 0 | I198: 15 | J198: 57 | K198: №685 сб. 2004 г. | L198: 3.20
D199: хлеб | E199: Хлеб/Батон (порциями) | F199: 40 | G199: 2 | H199: 0 | I199: 18 | J199: 124 | K199: №1 сб.2004 г./ ТТК №27 | L199: 3.83
D203: итого | F203: =SUM(F196:F202) -> 505 | G203: =SUM(G196:G202) -> 16 | H203: =SUM(H196:H202) -> 16 | I203: =SUM(I196:I202) -> 67 | J203: =SUM(J196:J202) -> 461 | L203: =SUM(L196:L202) -> 69.43
A204: =A196 -> 2 | B204: =B196 -> 5 | C204: Обед | D204: закуска
D205: 1 блюдо
D206: 2 блюдо
D207: гарнир
D208: напиток
D209: хлеб бел.
D210: хлеб черн.
D213: итого | F213: =SUM(F204:F212) -> 0 | G213: =SUM(G204:G212) -> 0 | H213: =SUM(H204:H212) -> 0 | I213: =SUM(I204:I212) -> 0 | J213: =SUM(J204:J212) -> 0 | L213: =SUM(L204:L212) -> 0
A214: =A196 -> 2 | B214: =B196 -> 5 | C214: Итого за день: | F214: =F203+F213 -> 505 | G214: =G203+G213 -> 15.98 | H214: =H203+H213 -> 15.87 | I214: =I203+I213 -> 67.47 | J214: =J203+J213 -> 461 | L214: =L203+L213 -> 69.43
A215: 2 | B215: 6 | C215: Завтрак | D215: гарнир | E215: Паста с сыром | F215: 175 | G215: 12 | H215: 15 | I215: 32 | J215: 264 | K215: ТТК №301С | L215: =9.1+22.3 -> 31.40
D216: гор.напиток | E216: Чай с сахаром | F216: 215 | G216: 0 | H216: 0 | I216: 15 | J216: 57 | K216: №685 сб.2004 г. | L216: 3.20
D217: хлеб | E217: Хлеб/Батон (порциями) | F217: 28 | G217: 2 | H217: 0 | I217: 13 | J217: 87 | K217: №1 сб.2004 г./ ТТК №27 | L217: 2.63
E218: Пюре фруктовое, 1 шт | F218: 125 | G218: 0 | H218: 0 | I218: 11 | J218: 62 | L218: 32.20
D222: итого | F222: =SUM(F215:F221) -> 543 | G222: =SUM(G215:G221) -> 15 | H222: =SUM(H215:H221) -> 16 | I222: =SUM(I215:I221) -> 71 | J222: =SUM(J215:J221) -> 470 | L222: =SUM(L215:L221) -> 69.43
A223: =A215 -> 2 | B223: =B215 -> 6 | C223: Обед | D223: закуска
D224: 1 блюдо
D225: 2 блюдо
D226: гарнир
D227: напиток
D228: хлеб бел.
D229: хлеб черн.
D232: итого | F232: =SUM(F223:F231) -> 0 | G232: =SUM(G223:G231) -> 0 | H232: =SUM(H223:H231) -> 0 | I232: =SUM(I223:I231) -> 0 | J232: =SUM(J223:J231) -> 0 | L232: =SUM(L223:L231) -> 0
A233: =A215 -> 2 | B233: =B215 -> 6 | C233: Итого за день: | F233: =F222+F232 -> 543 | G233: =G222+G232 -> 14.72 | H233: =H222+H232 -> 15.8 | I233: =I222+I232 -> 70.79 | J233: =J222+J232 -> 470 | L233: =L222+L232 -> 69.43
C234: Среднее значение за период: | F234: =(F24+F43+F62+F81+F100+F138+F157+F176+F195+F214)/(IF(F24=0, 0, 1)+IF(F43=0, 0, 1)+IF(F62=0, 0, 1)+IF(F81=0, 0, 1)+IF(F100=0, 0, 1)+IF(F138=0, 0, 1)+IF(F157=0, 0, 1)+IF(F176=0, 0, 1)+IF(F195=0, 0, 1)+IF(F214=0, 0, 1)) -> 509 | G234: =(G24+G43+G62+G81+G100+G138+G157+G176+G195+G214)/(IF(G24=0, 0, 1)+IF(G43=0, 0, 1)+IF(G62=0, 0, 1)+IF(G81=0, 0, 1)+IF(G100=0, 0, 1)+IF(G138=0, 0, 1)+IF(G157=0, 0, 1)+IF(G176=0, 0, 1)+IF(G195=0, 0, 1)+IF(G214=0, 0, 1)) -> 17.387 | H234: =(H24+H43+H62+H81+H100+H138+H157+H176+H195+H214)/(IF(H24=0, 0, 1)+IF(H43=0, 0, 1)+IF(H62=0, 0, 1)+IF(H81=0, 0, 1)+IF(H100=0, 0, 1)+IF(H138=0, 0, 1)+IF(H157=0, 0, 1)+IF(H176=0, 0, 1)+IF(H195=0, 0, 1)+IF(H214=0, 0, 1)) -> 17.123 | I234: =(I24+I43+I62+I81+I100+I138+I157+I176+I195+I214)/(IF(I24=0, 0, 1)+IF(I43=0, 0, 1)+IF(I62=0, 0, 1)+IF(I81=0, 0, 1)+IF(I100=0, 0, 1)+IF(I138=0, 0, 1)+IF(I157=0, 0, 1)+IF(I176=0, 0, 1)+IF(I195=0, 0, 1)+IF(I214=0, 0, 1)) -> 76.07 | J234: =(J24+J43+J62+J81+J100+J138+J157+J176+J195+J214)/(IF(J24=0, 0, 1)+IF(J43=0, 0, 1)+IF(J62=0, 0, 1)+IF(J81=0, 0, 1)+IF(J100=0, 0, 1)+IF(J138=0, 0, 1)+IF(J157=0, 0, 1)+IF(J176=0, 0, 1)+IF(J195=0, 0, 1)+IF(J214=0, 0, 1)) -> 552.3 | L234: =(L24+L43+L62+L81+L100+L138+L157+L176+L195+L214)/(IF(L24=0, 0, 1)+IF(L43=0, 0, 1)+IF(L62=0, 0, 1)+IF(L81=0, 0, 1)+IF(L100=0, 0, 1)+IF(L138=0, 0, 1)+IF(L157=0, 0, 1)+IF(L176=0, 0, 1)+IF(L195=0, 0, 1)+IF(L214=0, 0, 1)) -> 69.43
